[Event "November 21 Early 2023"]
[Site "https://www.chess.com"]
[Date "2023.11.21"]
[Round "10"]
[White "Ibarra Jerez, Jose Carlos"]
[Black "Jakubowski, Krzysztof"]
[Result "1-0"]
[Board "42"]
[TimeControl "180+1"]
[WhiteFideId "2226332"]
[BlackFideId "1112848"]
[WhiteElo "2634"]
[BlackElo "2369"]
[WhiteTeam "ESP"]
[BlackTeam "POL"]
[WhiteClock "0:00:06"]
[BlackClock "0:00:00"]

1. e4 {[%clk 0:03:00]}  c5 {[%clk 0:02:59]} 2. Nf3 {[%clk 0:03:01]}  e6 {[%clk 0:02:59]} 3. d3 {[%clk 0:03:00]}  Nc6 {[%clk 0:02:57]} 4. g3 {[%clk 0:03:01]}  Nf6 {[%clk 0:02:56]} 5. Bg2 {[%clk 0:03:01]}  d5 {[%clk 0:02:56]} 6. Qe2 {[%clk 0:03:02]}  Be7 {[%clk 0:02:48]} 7. O-O {[%clk 0:03:02]}  b5 {[%clk 0:02:47]} 8. exd5 {[%clk 0:03:01]}  Nxd5 {[%clk 0:02:40]} 9. c4 {[%clk 0:03:01]}  Nc7 {[%clk 0:02:35]} 10. Nc3 {[%clk 0:02:52]}  b4 {[%clk 0:02:30]} 11. Nb5 {[%clk 0:02:52]}  a6 {[%clk 0:02:00]} 12. Nxc7+ {[%clk 0:02:52]}  Qxc7 {[%clk 0:02:00]} 13. Bf4 {[%clk 0:02:53]}  Qb6 {[%clk 0:01:59]} 14. Ne5 {[%clk 0:02:52]}  Nd4 {[%clk 0:01:52]} 15. Qg4 {[%clk 0:02:52]}  Bb7 {[%clk 0:01:35]} 16. Qxg7 {[%clk 0:02:48]}  Rf8 {[%clk 0:01:34]} 17. Rfe1 {[%clk 0:02:43]}  f6 {[%clk 0:01:27]} 18. Qxh7 {[%clk 0:02:01]}  fxe5 {[%clk 0:01:20]} 19. Qh5+ {[%clk 0:02:02]}  Kd7 {[%clk 0:01:16]} 20. Qxe5 {[%clk 0:01:49]}  Rf5 {[%clk 0:01:12]} 21. Qg7 {[%clk 0:01:42]}  Raf8 {[%clk 0:01:12]} 22. Bxb7 {[%clk 0:01:25]}  Qxb7 {[%clk 0:01:11]} 23. Re4 {[%clk 0:01:25]}  Nf3+ {[%clk 0:00:47]} 24. Kh1 {[%clk 0:01:17]}  Ng5 {[%clk 0:00:33]} 25. Bxg5 {[%clk 0:01:11]}  Rxg5 {[%clk 0:00:33]} 26. Qh6 {[%clk 0:01:11]}  Re5 {[%clk 0:00:32]} 27. Qe3 {[%clk 0:01:05]}  Rxe4 {[%clk 0:00:29]} 28. dxe4 {[%clk 0:01:06]}  Bf6 {[%clk 0:00:28]} 29. Qxc5 {[%clk 0:01:01]}  Qxe4+ {[%clk 0:00:26]} 30. Kg1 {[%clk 0:01:01]}  Ke8 {[%clk 0:00:22]} 31. Rd1 {[%clk 0:00:54]}  Be7 {[%clk 0:00:21]} 32. Qh5+ {[%clk 0:00:50]}  Rf7 {[%clk 0:00:20]} 33. Qh8+ {[%clk 0:00:45]}  Bf8 {[%clk 0:00:20]} 34. Qh5 {[%clk 0:00:23]}  Qc2 {[%clk 0:00:17]} 35. Rf1 {[%clk 0:00:19]}  Qxc4 {[%clk 0:00:15]} 36. Qg6 {[%clk 0:00:19]}  Qd5 {[%clk 0:00:14]} 37. Re1 {[%clk 0:00:16]}  Ke7 {[%clk 0:00:12]} 38. Qc2 {[%clk 0:00:16]}  Bg7 {[%clk 0:00:10]} 39. Rd1 {[%clk 0:00:15]}  Bd4 {[%clk 0:00:09]} 40. Qc7+ {[%clk 0:00:12]}  Kf8 {[%clk 0:00:08]} 41. Qc8+ {[%clk 0:00:09]}  Kg7 {[%clk 0:00:08]} 42. Rd2 {[%clk 0:00:10]}  e5 {[%clk 0:00:07]} 43. Qc2 {[%clk 0:00:10]}  Qe6 {[%clk 0:00:05]} 44. Qe4 {[%clk 0:00:09]}  Qf6 {[%clk 0:00:04]} 45. Kg2 {[%clk 0:00:09]}  Qh6 {[%clk 0:00:04]} 46. Re2 {[%clk 0:00:07]}  Qg6 {[%clk 0:00:03]} 47. Qd5 {[%clk 0:00:07]}  Qf5 {[%clk 0:00:02]} 48. f3 {[%clk 0:00:07]}  Rd7 {[%clk 0:00:02]} 49. Qc6 {[%clk 0:00:06]}  Rf7 {[%clk 0:00:01]} 50. h4 {[%clk 0:00:05]}  a5 {[%clk 0:00:01]} 51. Qd5 {[%clk 0:00:05]}  Qd3 {[%clk 0:00:01]} 52. Qe4 {[%clk 0:00:02]}  Qxe4 {[%clk 0:00:01]} 53. Rxe4 {[%clk 0:00:02]}  a4 {[%clk 0:00:02]} 54. b3 {[%clk 0:00:02]}  Rc7 {[%clk 0:00:02]} 55. f4 {[%clk 0:00:03]}  Rc2+ {[%clk 0:00:02]} 56. Kh3 {[%clk 0:00:03]}  Rxa2 {[%clk 0:00:03]} 57. fxe5 {[%clk 0:00:04]}  Bc3 {[%clk 0:00:03]} 58. bxa4 {[%clk 0:00:03]}  Rxa4 {[%clk 0:00:03]} 59. e6 {[%clk 0:00:04]}  Kf8 {[%clk 0:00:03]} 60. h5 {[%clk 0:00:04]}  Ke7 {[%clk 0:00:04]} 61. h6 {[%clk 0:00:05]}  Ra8 {[%clk 0:00:04]} 62. Rc4 {[%clk 0:00:04]}  Rh8 {[%clk 0:00:04]} 63. Kg4 {[%clk 0:00:03]}  Rxh6 {[%clk 0:00:03]} 64. Kf5 {[%clk 0:00:04]}  Rf6+ {[%clk 0:00:04]} 65. Ke4 {[%clk 0:00:05]}  Rxe6+ {[%clk 0:00:05]} 66. Kd3 {[%clk 0:00:05]}  Rd6+ {[%clk 0:00:05]} 67. Kc2 {[%clk 0:00:06]}  Rg6 {[%clk 0:00:05]} 68. g4 {[%clk 0:00:06]}  Kf6 {[%clk 0:00:05]} 69. Kb3 {[%clk 0:00:06]}  Kg5 {[%clk 0:00:05]} 70. Re4 {[%clk 0:00:06]}  Rf6 {[%clk 0:00:05]} 71. Rc4 {[%clk 0:00:06]}  Rf4 {[%clk 0:00:06]} 72. Rc8 {[%clk 0:00:06]}  Kxg4 {[%clk 0:00:06]} 73. Re8 {[%clk 0:00:07]}  Kf3 {[%clk 0:00:06]} 74. Kc2 {[%clk 0:00:07]}  Re4 {[%clk 0:00:06]} 75. Rd8 {[%clk 0:00:06]}  Ke3 {[%clk 0:00:06]} 76. Rd3+ {[%clk 0:00:07]}  Kf4 {[%clk 0:00:07]} 77. Rd8 {[%clk 0:00:08]}  Ke5 {[%clk 0:00:07]} 78. Kb3 {[%clk 0:00:07]}  Re3 {[%clk 0:00:07]} 79. Re8+ {[%clk 0:00:06]}  Kf4 {[%clk 0:00:07]} 80. Rf8+ {[%clk 0:00:06]}  Ke4 {[%clk 0:00:07]} 81. Rd8 {[%clk 0:00:07]}  Kf3 {[%clk 0:00:07]} 82. Kc4 {[%clk 0:00:07]}  Be1 {[%clk 0:00:07]} 83. Rd1 {[%clk 0:00:07]}  Ke2 {[%clk 0:00:07]} 84. Rd8 {[%clk 0:00:07]}  Re4+ {[%clk 0:00:07]} 85. Kb3 {[%clk 0:00:07]}  Bd2 {[%clk 0:00:07]} 86. Rd7 {[%clk 0:00:08]}  Kd1 {[%clk 0:00:07]} 87. Rh7 {[%clk 0:00:07]}  Re3+ {[%clk 0:00:07]} 88. Kb2 {[%clk 0:00:08]}  Bc1+ {[%clk 0:00:06]} 89. Ka2 {[%clk 0:00:07]}  Ra3+ {[%clk 0:00:07]} 90. Kb1 {[%clk 0:00:08]}  Rb3+ {[%clk 0:00:07]} 91. Ka2 {[%clk 0:00:08]}  Rb2+ {[%clk 0:00:06]} 92. Ka1 {[%clk 0:00:09]}  Re2 {[%clk 0:00:06]} 93. Kb1 {[%clk 0:00:08]}  Bd2 {[%clk 0:00:06]} 94. Kb2 {[%clk 0:00:08]}  Bc3+ {[%clk 0:00:06]} 95. Kb3 {[%clk 0:00:09]}  Rb2+ {[%clk 0:00:06]} 96. Kc4 {[%clk 0:00:08]}  Kc2 {[%clk 0:00:07]} 97. Rh2+ {[%clk 0:00:09]}  Kb1 {[%clk 0:00:07]} 98. Rh8 {[%clk 0:00:08]}  Rf2 {[%clk 0:00:06]} 99. Ra8 {[%clk 0:00:08]}  Rf3 {[%clk 0:00:05]} 100. Rg8 {[%clk 0:00:07]}  Be1 {[%clk 0:00:05]} 101. Rg1 {[%clk 0:00:08]}  Re3 {[%clk 0:00:05]} 102. Kd4 {[%clk 0:00:07]}  Re7 {[%clk 0:00:05]} 103. Rg2 {[%clk 0:00:06]}  Kc1 {[%clk 0:00:03]} 104. Kc4 {[%clk 0:00:06]}  Re3 {[%clk 0:00:02]} 105. Kd4 {[%clk 0:00:06]}  Rh3 {[%clk 0:00:02]} 106. Kc4 {[%clk 0:00:06]}  Kd1 {[%clk 0:00:03]} 107. Ra2 {[%clk 0:00:06]}  Bd2 {[%clk 0:00:03]} 108. Ra1+ {[%clk 0:00:05]}  Ke2 {[%clk 0:00:03]} 109. Ra2 {[%clk 0:00:06]}  Rh4+ {[%clk 0:00:01]} 110. Kb3 {[%clk 0:00:06]}  Rh3+ {[%clk 0:00:00]} 111. Kc4 {[%clk 0:00:06]} 1-0

[Event "November 21 Early 2023"]
[Site "https://www.chess.com"]
[Date "2023.11.21"]
[Round "10"]
[White "Volkov, Maksim"]
[Black "mind1mover"]
[Result "0-1"]
[Board "43"]
[TimeControl "180+1"]
[WhiteFideId "54123070"]
[WhiteElo "2293"]
[BlackElo "2865"]
[WhiteTeam "RUS"]
[WhiteClock "0:00:00"]
[BlackClock "0:00:44"]

1. d4 {[%clk 0:03:00]}  d5 {[%clk 0:03:00]} 2. c4 {[%clk 0:03:01]}  dxc4 {[%clk 0:03:00]} 3. Nf3 {[%clk 0:03:00]}  a6 {[%clk 0:03:00]} 4. e3 {[%clk 0:03:00]}  Bg4 {[%clk 0:03:01]} 5. Bxc4 {[%clk 0:02:58]}  e6 {[%clk 0:03:01]} 6. h3 {[%clk 0:02:58]}  Bh5 {[%clk 0:03:01]} 7. Nc3 {[%clk 0:02:58]}  Nc6 {[%clk 0:03:02]} 8. O-O {[%clk 0:02:52]}  Nf6 {[%clk 0:03:00]} 9. g4 {[%clk 0:02:51]}  Bg6 {[%clk 0:03:00]} 10. Re1 {[%clk 0:02:51]}  Be7 {[%clk 0:02:57]} 11. e4 {[%clk 0:02:51]}  O-O {[%clk 0:02:52]} 12. Bf1 {[%clk 0:02:50]}  Bb4 {[%clk 0:02:49]} 13. Bg5 {[%clk 0:02:36]}  h6 {[%clk 0:02:43]} 14. Bh4 {[%clk 0:02:36]}  Be7 {[%clk 0:02:42]} 15. Bg3 {[%clk 0:02:11]}  Bb4 {[%clk 0:02:37]} 16. Bh4 {[%clk 0:02:09]}  Be7 {[%clk 0:02:37]} 17. Bg3 {[%clk 0:01:50]}  Re8 {[%clk 0:02:37]} 18. a3 {[%clk 0:01:46]}  b5 {[%clk 0:02:35]} 19. d5 {[%clk 0:01:44]}  exd5 {[%clk 0:02:31]} 20. exd5 {[%clk 0:01:39]}  Na5 {[%clk 0:02:30]} 21. Ne5 {[%clk 0:01:38]}  Bh7 {[%clk 0:02:14]} 22. b4 {[%clk 0:01:36]}  Nb7 {[%clk 0:02:15]} 23. Nc6 {[%clk 0:01:28]}  Qd7 {[%clk 0:02:15]} 24. Bg2 {[%clk 0:01:27]}  Bd6 {[%clk 0:02:10]} 25. Bh4 {[%clk 0:01:23]}  g5 {[%clk 0:02:10]} 26. Qd4 {[%clk 0:01:19]}  Rxe1+ {[%clk 0:02:03]} 27. Rxe1 {[%clk 0:01:18]}  Re8 {[%clk 0:02:03]} 28. Rxe8+ {[%clk 0:00:59]}  Nxe8 {[%clk 0:02:04]} 29. Bg3 {[%clk 0:00:58]}  Bxg3 {[%clk 0:01:57]} 30. fxg3 {[%clk 0:00:59]}  Nbd6 {[%clk 0:01:45]} 31. Qa7 {[%clk 0:00:54]}  Nf6 {[%clk 0:01:30]} 32. Qxa6 {[%clk 0:00:52]}  Qe8 {[%clk 0:01:28]} 33. Kh2 {[%clk 0:00:50]}  Qe3 {[%clk 0:01:22]} 34. Nxb5 {[%clk 0:00:49]}  Nde4 {[%clk 0:01:17]} 35. Qc8+ {[%clk 0:00:49]}  Kg7 {[%clk 0:01:17]} 36. Qxc7 {[%clk 0:00:50]}  Qf2 {[%clk 0:01:04]} 37. Nbd4 {[%clk 0:00:44]}  Nd2 {[%clk 0:01:01]} 38. Ne6+ {[%clk 0:00:21]}  Kh8 {[%clk 0:01:00]} 39. Qb8+ {[%clk 0:00:18]}  Ng8 {[%clk 0:00:44]} 40. Qe5+ {[%clk 0:00:17]}  f6 {[%clk 0:00:45]} 41. Qd4 {[%clk 0:00:00]}  Nf3+ {[%clk 0:00:44]} 0-1

[Event "November 21 Early 2023"]
[Site "https://www.chess.com"]
[Date "2023.11.21"]
[Round "10"]
[White "Gokerkan, Cem Kaan"]
[Black "Nagare Kaivalya Sandip"]
[Result "1-0"]
[Board "44"]
[TimeControl "180+1"]
[WhiteFideId "6336760"]
[BlackFideId "25957929"]
[WhiteElo "2365"]
[BlackElo "2024"]
[WhiteTeam "TUR"]
[BlackTeam "IND"]
[WhiteClock "0:00:55"]
[BlackClock "0:00:08"]

1. e4 {[%clk 0:03:00]}  e5 {[%clk 0:02:59]} 2. Nf3 {[%clk 0:03:00]}  Nc6 {[%clk 0:02:59]} 3. Bc4 {[%clk 0:03:00]}  Nf6 {[%clk 0:02:58]} 4. d3 {[%clk 0:03:00]}  Bc5 {[%clk 0:02:58]} 5. c3 {[%clk 0:03:00]}  d6 {[%clk 0:02:56]} 6. Nbd2 {[%clk 0:02:59]}  O-O {[%clk 0:02:56]} 7. Bb3 {[%clk 0:03:00]}  Bb6 {[%clk 0:02:56]} 8. Nf1 {[%clk 0:03:00]}  Ne7 {[%clk 0:02:56]} 9. Ng3 {[%clk 0:03:00]}  Ng6 {[%clk 0:02:56]} 10. O-O {[%clk 0:03:00]}  c5 {[%clk 0:02:56]} 11. Re1 {[%clk 0:02:58]}  Be6 {[%clk 0:02:54]} 12. a4 {[%clk 0:02:52]}  h6 {[%clk 0:02:43]} 13. h3 {[%clk 0:02:41]}  Qd7 {[%clk 0:02:41]} 14. a5 {[%clk 0:02:36]}  Bc7 {[%clk 0:02:40]} 15. d4 {[%clk 0:02:32]}  cxd4 {[%clk 0:02:35]} 16. cxd4 {[%clk 0:02:32]}  Bxb3 {[%clk 0:02:31]} 17. Qxb3 {[%clk 0:02:33]}  Rab8 {[%clk 0:02:30]} 18. dxe5 {[%clk 0:02:20]}  Nxe5 {[%clk 0:02:28]} 19. Nd4 {[%clk 0:02:16]}  Nc6 {[%clk 0:02:19]} 20. Ndf5 {[%clk 0:02:13]}  Bxa5 {[%clk 0:02:07]} 21. Rd1 {[%clk 0:02:11]}  Qe6 {[%clk 0:01:55]} 22. Qf3 {[%clk 0:02:07]}  Ne5 {[%clk 0:01:52]} 23. Qf4 {[%clk 0:01:50]}  Bb4 {[%clk 0:01:52]} 24. Nd4 {[%clk 0:01:48]}  Qc4 {[%clk 0:01:50]} 25. Ngf5 {[%clk 0:01:47]}  Ng6 {[%clk 0:01:48]} 26. Qf3 {[%clk 0:01:23]}  Nd7 {[%clk 0:01:28]} 27. h4 {[%clk 0:01:23]}  Nde5 {[%clk 0:01:26]} 28. Qg3 {[%clk 0:01:23]}  h5 {[%clk 0:01:15]} 29. Qg5 {[%clk 0:01:01]}  Bc5 {[%clk 0:00:48]} 30. Qxh5 {[%clk 0:01:01]}  Nd3 {[%clk 0:00:44]} 31. Be3 {[%clk 0:00:57]}  Nxb2 {[%clk 0:00:38]} 32. Rdc1 {[%clk 0:00:57]}  Qd3 {[%clk 0:00:36]} 33. Qg4 {[%clk 0:00:56]}  Nc4 {[%clk 0:00:32]} 34. Rxc4 {[%clk 0:00:53]}  Qxc4 {[%clk 0:00:30]} 35. h5 {[%clk 0:00:54]}  Bxd4 {[%clk 0:00:21]} 36. Bxd4 {[%clk 0:00:55]}  Qe6 {[%clk 0:00:15]} 37. hxg6 {[%clk 0:00:55]}  fxg6 {[%clk 0:00:08]} 38. Nh6+ {[%clk 0:00:55]} 1-0

[Event "November 21 Early 2023"]
[Site "https://www.chess.com"]
[Date "2023.11.21"]
[Round "10"]
[White "Maltsevskaya, Aleksandra"]
[Black "Klukin, Kirill"]
[Result "0-1"]
[Board "47"]
[TimeControl "180+1"]
[WhiteFideId "24174041"]
[BlackFideId "24199273"]
[WhiteElo "2296"]
[BlackElo "2344"]
[WhiteTeam "POL"]
[BlackTeam "RUS"]
[WhiteClock "0:00:00"]
[BlackClock "0:00:44"]

1. Nf3 {[%clk 0:02:23]}  c5 {[%clk 0:02:58]} 2. g3 {[%clk 0:02:23]}  Nc6 {[%clk 0:02:58]} 3. Bg2 {[%clk 0:02:24]}  g6 {[%clk 0:02:59]} 4. O-O {[%clk 0:02:24]}  Bg7 {[%clk 0:03:00]} 5. d3 {[%clk 0:02:25]}  e6 {[%clk 0:03:00]} 6. e4 {[%clk 0:02:25]}  Nge7 {[%clk 0:03:00]} 7. Nbd2 {[%clk 0:02:25]}  O-O {[%clk 0:03:01]} 8. a4 {[%clk 0:02:25]}  d5 {[%clk 0:03:02]} 9. exd5 {[%clk 0:02:24]}  Nxd5 {[%clk 0:03:02]} 10. Nc4 {[%clk 0:02:24]}  b6 {[%clk 0:03:02]} 11. a5 {[%clk 0:02:24]}  b5 {[%clk 0:03:00]} 12. Ne3 {[%clk 0:02:24]}  a6 {[%clk 0:02:55]} 13. Nxd5 {[%clk 0:02:25]}  exd5 {[%clk 0:02:56]} 14. Bg5 {[%clk 0:02:23]}  Qd7 {[%clk 0:02:50]} 15. Qd2 {[%clk 0:02:21]}  Re8 {[%clk 0:02:48]} 16. c3 {[%clk 0:02:20]}  Bb7 {[%clk 0:02:47]} 17. Bh6 {[%clk 0:02:21]}  Bh8 {[%clk 0:02:47]} 18. Rfe1 {[%clk 0:02:20]}  d4 {[%clk 0:02:47]} 19. Ng5 {[%clk 0:02:18]}  dxc3 {[%clk 0:02:40]} 20. bxc3 {[%clk 0:02:18]}  Ne5 {[%clk 0:02:41]} 21. Bxb7 {[%clk 0:02:15]}  Qxb7 {[%clk 0:02:42]} 22. d4 {[%clk 0:02:02]}  cxd4 {[%clk 0:02:33]} 23. cxd4 {[%clk 0:02:03]}  Ng4 {[%clk 0:02:34]} 24. Nh3 {[%clk 0:01:44]}  Nxh6 {[%clk 0:02:23]} 25. Qxh6 {[%clk 0:01:43]}  Bxd4 {[%clk 0:02:24]} 26. Rad1 {[%clk 0:00:48]}  Qf3 {[%clk 0:02:19]} 27. Qxh7+ {[%clk 0:00:17]}  Kxh7 {[%clk 0:02:16]} 28. Ng5+ {[%clk 0:00:18]}  Kg7 {[%clk 0:02:17]} 29. Nxf3 {[%clk 0:00:19]}  Bc3 {[%clk 0:02:17]} 30. Rxe8 {[%clk 0:00:18]}  Rxe8 {[%clk 0:02:18]} 31. Rd7 {[%clk 0:00:18]}  Kf6 {[%clk 0:02:03]} 32. Ra7 {[%clk 0:00:11]}  Re6 {[%clk 0:02:00]} 33. h4 {[%clk 0:00:11]}  b4 {[%clk 0:01:19]} 34. Ng5 {[%clk 0:00:12]}  Rc6 {[%clk 0:01:18]} 35. Kg2 {[%clk 0:00:09]}  Ke5 {[%clk 0:01:16]} 36. Rd7 {[%clk 0:00:08]}  f6 {[%clk 0:00:44]} 37. f4+ {[%clk 0:00:08]}  Kf5 {[%clk 0:00:43]} 38. Rd5+ {[%clk 0:00:04]}  Be5 {[%clk 0:00:43]} 39. fxe5 {[%clk 0:00:01]}  fxg5 {[%clk 0:00:43]} 40. hxg5 {[%clk 0:00:01]}  Ke6 {[%clk 0:00:43]} 41. Rd3 {[%clk 0:00:01]}  Kxe5 {[%clk 0:00:44]} 42. Rb3 {[%clk 0:00:00]}  Rc4 {[%clk 0:00:44]} 0-1

[Event "November 21 Early 2023"]
[Site "https://www.chess.com"]
[Date "2023.11.21"]
[Round "10"]
[White "Vasquez Schroeder, Rodrigo"]
[Black "Skatchkov, Valery"]
[Result "1-0"]
[Board "48"]
[TimeControl "180+1"]
[WhiteFideId "3400042"]
[BlackFideId "24195812"]
[WhiteElo "2582"]
[BlackElo "2320"]
[WhiteTeam "CHI"]
[BlackTeam "RUS"]
[WhiteClock "0:01:15"]
[BlackClock "0:00:01"]

1. e4 {[%clk 0:03:00]}  e5 {[%clk 0:02:58]} 2. Nf3 {[%clk 0:02:59]}  Nf6 {[%clk 0:02:56]} 3. d3 {[%clk 0:02:59]}  Nc6 {[%clk 0:02:56]} 4. c3 {[%clk 0:02:58]}  d5 {[%clk 0:02:56]} 5. Nbd2 {[%clk 0:02:58]}  Bc5 {[%clk 0:02:56]} 6. Be2 {[%clk 0:02:59]}  a5 {[%clk 0:02:56]} 7. O-O {[%clk 0:02:59]}  O-O {[%clk 0:02:57]} 8. b3 {[%clk 0:02:59]}  h6 {[%clk 0:02:53]} 9. a3 {[%clk 0:02:59]}  b5 {[%clk 0:02:44]} 10. Bb2 {[%clk 0:02:58]}  Be6 {[%clk 0:02:43]} 11. b4 {[%clk 0:02:57]}  Bb6 {[%clk 0:02:41]} 12. Qc2 {[%clk 0:02:56]}  Qd7 {[%clk 0:02:39]} 13. Rad1 {[%clk 0:02:49]}  Rfd8 {[%clk 0:02:30]} 14. Nb3 {[%clk 0:02:46]}  Qe7 {[%clk 0:02:16]} 15. h3 {[%clk 0:02:43]}  dxe4 {[%clk 0:02:14]} 16. dxe4 {[%clk 0:02:42]}  axb4 {[%clk 0:01:14]} 17. cxb4 {[%clk 0:02:35]}  Rxd1 {[%clk 0:01:05]} 18. Bxd1 {[%clk 0:02:30]}  Bc4 {[%clk 0:00:43]} 19. Re1 {[%clk 0:02:18]}  Qd6 {[%clk 0:00:19]} 20. Be2 {[%clk 0:02:15]}  Nxe4 {[%clk 0:00:14]} 21. Qxe4 {[%clk 0:02:09]}  Bxb3 {[%clk 0:00:14]} 22. Bd3 {[%clk 0:01:57]}  g6 {[%clk 0:00:11]} 23. Bxb5 {[%clk 0:01:53]}  Bd5 {[%clk 0:00:10]} 24. Qg4 {[%clk 0:01:52]}  h5 {[%clk 0:00:05]} 25. Qg3 {[%clk 0:01:51]}  e4 {[%clk 0:00:05]} 26. Qxd6 {[%clk 0:01:44]}  cxd6 {[%clk 0:00:05]} 27. Rd1 {[%clk 0:01:39]}  Ne7 {[%clk 0:00:03]} 28. Ng5 {[%clk 0:01:31]}  Bb7 {[%clk 0:00:02]} 29. Rxd6 {[%clk 0:01:28]}  Bc7 {[%clk 0:00:02]} 30. Rd7 {[%clk 0:01:26]}  Nd5 {[%clk 0:00:02]} 31. Bc4 {[%clk 0:01:21]}  Rd8 {[%clk 0:00:02]} 32. Rxd8+ {[%clk 0:01:19]}  Bxd8 {[%clk 0:00:02]} 33. Nxe4 {[%clk 0:01:20]}  Nb6 {[%clk 0:00:02]} 34. Bd3 {[%clk 0:01:18]}  Na4 {[%clk 0:00:02]} 35. Bd4 {[%clk 0:01:18]}  Be7 {[%clk 0:00:02]} 36. Nc5 {[%clk 0:01:16]}  Bxc5 {[%clk 0:00:01]} 37. bxc5 {[%clk 0:01:15]}  Bc6 {[%clk 0:00:02]} 38. f3 {[%clk 0:01:15]}  Kf8 {[%clk 0:00:02]} 39. Kf2 {[%clk 0:01:15]}  Ke7 {[%clk 0:00:02]} 40. Ke3 {[%clk 0:01:16]}  Ke6 {[%clk 0:00:03]} 41. g4 {[%clk 0:01:17]}  Kd5 {[%clk 0:00:01]} 42. Be4+ {[%clk 0:01:15]} 1-0

[Event "November 21 Early 2023"]
[Site "https://www.chess.com"]
[Date "2023.11.21"]
[Round "10"]
[White "Djordjevic, Vuk"]
[Black "Bettalli, Francesco"]
[Result "1-0"]
[Board "50"]
[TimeControl "180+1"]
[WhiteFideId "902098"]
[BlackFideId "2816453"]
[WhiteElo "2425"]
[BlackElo "2226"]
[WhiteTeam "SRB"]
[BlackTeam "ITA"]
[WhiteClock "0:00:58"]
[BlackClock "0:00:17"]

1. d4 {[%clk 0:03:00]}  Nf6 {[%clk 0:02:45]} 2. Bg5 {[%clk 0:02:58]}  g6 {[%clk 0:02:41]} 3. Bxf6 {[%clk 0:02:58]}  exf6 {[%clk 0:02:42]} 4. c4 {[%clk 0:02:58]}  Bg7 {[%clk 0:02:39]} 5. Nc3 {[%clk 0:02:56]}  O-O {[%clk 0:02:36]} 6. g3 {[%clk 0:02:56]}  d6 {[%clk 0:02:31]} 7. Bg2 {[%clk 0:02:56]}  Nc6 {[%clk 0:02:31]} 8. e3 {[%clk 0:02:56]}  Re8 {[%clk 0:02:30]} 9. Nge2 {[%clk 0:02:56]}  Bg4 {[%clk 0:02:27]} 10. h3 {[%clk 0:02:44]}  Bxe2 {[%clk 0:02:17]} 11. Nxe2 {[%clk 0:02:41]}  f5 {[%clk 0:02:13]} 12. Rb1 {[%clk 0:02:38]}  Qd7 {[%clk 0:02:02]} 13. b4 {[%clk 0:02:36]}  a6 {[%clk 0:01:56]} 14. O-O {[%clk 0:02:30]}  h5 {[%clk 0:01:51]} 15. h4 {[%clk 0:02:29]}  Rab8 {[%clk 0:01:39]} 16. b5 {[%clk 0:02:15]}  axb5 {[%clk 0:01:35]} 17. cxb5 {[%clk 0:02:16]}  Nd8 {[%clk 0:01:34]} 18. Qb3 {[%clk 0:02:08]}  Ne6 {[%clk 0:01:30]} 19. Rfc1 {[%clk 0:02:01]}  Kh7 {[%clk 0:01:28]} 20. a4 {[%clk 0:02:00]}  f6 {[%clk 0:01:16]} 21. a5 {[%clk 0:01:55]}  g5 {[%clk 0:01:15]} 22. Qd3 {[%clk 0:01:47]}  Nd8 {[%clk 0:01:12]} 23. a6 {[%clk 0:01:40]}  d5 {[%clk 0:01:00]} 24. Rc5 {[%clk 0:01:23]}  bxa6 {[%clk 0:00:57]} 25. Rxd5 {[%clk 0:01:22]}  Qe6 {[%clk 0:00:56]} 26. Rxf5 {[%clk 0:01:19]}  Kh8 {[%clk 0:00:49]} 27. hxg5 {[%clk 0:01:18]}  axb5 {[%clk 0:00:47]} 28. gxf6 {[%clk 0:01:17]}  Bh6 {[%clk 0:00:35]} 29. Rbxb5 {[%clk 0:01:11]}  Rxb5 {[%clk 0:00:34]} 30. Qxb5 {[%clk 0:01:12]}  c6 {[%clk 0:00:32]} 31. Qd3 {[%clk 0:01:07]}  Nf7 {[%clk 0:00:33]} 32. Nf4 {[%clk 0:01:05]}  Bxf4 {[%clk 0:00:32]} 33. Rxh5+ {[%clk 0:00:58]}  Bh6 {[%clk 0:00:17]} 34. Qg6 {[%clk 0:00:58]} 1-0